Cogmind - Beta 13 @@@ ROGUE MODE // 2024.04.01 @ 21:54:52 Player: CogEmotions! Result: Destroyed by G-47 Trooper with Particle Gun Performance ------------- Evolutions (2) 1000 Regions Visited (3) 600 Robots Destroyed (66) 330 Value Destroyed (2123) 2123 Prototype IDs (3) 60 Alien Tech Used (0) 0 Bonus (98) 98 TOTAL SCORE: 4211 Bonus ------- High Alert Combat Kills 98 Cogmind --------- Core Integrity 0/550 Matter 300/300 Energy 100/100 System Corruption 0% Temperature Cool (27) Movement Walking (130) Location -8/Materials Parts ------- > --- POWER (1) -------- (None) > --- PROPULSION (4) --- Titanium Leg > --- UTILITY (3) ------ Actuator Array > --- WEAPON (3) ------- Katana Katana > --- INVENTORY (5) ---- Improved Ion Engine Advanced Visual Processing Unit Improved Weapon Shielding Spread Laser Scythe Peak State ------------ > --- POWER ------------ Light Ion Engine > --- PROPULSION ------- VTOL Module VTOL Module VTOL Module VTOL Module > --- UTILITY ---------- High-capacity Storage Unit High-capacity Battery Advanced Visual Processing Unit > --- WEAPON ----------- High-powered Field Laser High-powered Field Laser High-powered Field Laser > --- INVENTORY -------- Light Nuclear Core Advanced Treads Advanced Treads Heat Sink Small Storage Unit ECM Suite Reaction Control System Reaction Control System Beam Cannon Flak Gun Flak Gun Light Cannon Grenade Launcher [Rating: 31] Favorites ----------- Power Light Ion Engine Engine Light Ion Engine Power Core Light Nuclear Core Propulsion Light Treads Treads Light Treads Leg Aluminum Leg Flight Unit VTOL Module Utility High-capacity Storage Unit Device Weight Redist. System Storage High-capacity Storage Unit Processor Advanced Visual Processing Unit Protection Light Armor Plating Weapon Light Assault Rifle Energy Gun High-powered Field Laser Energy Cannon Beam Cannon Ballistic Gun Light Assault Rifle Ballistic Cannon Light Cannon Launcher Grenade Launcher Slashing Weapon Katana Build | -11 -10 -9 -8 ------- Run | Yrd Mat Mat Mat Slots Evolved 4 | . . 2 2 Power . | . . . . Propulsion 2 | . . . 2 Utility 1 | . . 1 . Weapon 1 | . . 1 . Parts Attached 79 | 6 5 24 44 Power 10 | 1 . 3 6 Engine 6 | 1 . 2 3 Core 4 | . . 1 3 Reactor . | . . . . Propulsion 23 | 2 . 4 17 Treads 9 | 2 . 4 3 Leg 6 | . . . 6 Wheel . | . . . . Hover . | . . . . Flight 8 | . . . 8 Utility 17 | 1 3 6 7 Device 4 | . . . 4 Storage 3 | 1 2 . . Processor 2 | . . 1 1 Hackware . | . . . . Protection 8 | . 1 5 2 Artifact . | . . . . Weapon 29 | 2 2 11 14 Energy Gun 6 | . . . 6 Energy Cannon 2 | . . 1 1 Ballistic Gun 9 | 2 . 4 3 Ballistic Cannon 1 | . . 1 . Launcher 8 | . 2 5 1 Special Weapon . | . . . . Impact Weapon . | . . . . Slashing Weapon 3 | . . . 3 Piercing Weapon . | . . . . Special Melee Weapon . | . . . . Unidentified Prototypes 3 | . . 1 2 Parts Lost 16 | . . 6 10 Power 4 | . . 1 3 Propulsion 6 | . . 2 4 Utility 4 | . . 2 2 Weapon 2 | . . 1 1 Highest Loss Streak 5 | . . 2 5 To Critical Strikes . | . . . . Average Slot Usage (%) 88 | . 97 96 79 Engine 6 | . 14 6 3 Core 3 | . . 3 4 Treads 13 | . 28 21 . Leg 7 | . . . 16 Flight 5 | . . . 11 Device 7 | . . . 16 Storage 11 | . 14 22 2 Processor 1 | . . . 3 Protection 5 | . 10 9 1 Energy Cannon 4 | . . 11 . Ballistic Gun 5 | . 6 6 4 Ballistic Cannon 1 | . . 4 . Launcher 7 | . 21 10 . Slashing Weapon 5 | . . . 11 Naked Turns . | . . . . Heaviest Build 69 | 10 53 69 59 Greatest Support 66 | 40 40 44 66 Greatest Overweight (x) 4 | . 1 1 4 Average Overweight (x) . | . . 1 . Largest Inventory Capacity 20 | 8 20 20 20 Average Capacity 11 | 7 17 20 5 Most Carried 20 | 5 6 20 20 Average Carried 5 | . 3 13 4 Final Capacity 20 | 8 20 20 5 Final Carried 20 | . 6 20 5 Class Distribution -------------------- 46% | Mutant 20% | Tank 17% | Gladiator 4% | Scavenger-Mutant 3% | Gunner Dominant Class ---------------- Mutant | -10/Materials Tank | -9/Materials Gladiator | -8/Materials Resources | -11 -10 -9 -8 ----------- Run | Yrd Mat Mat Mat Matter Collected 1694 | 216 211 547 720 Remotely . | . . . . Salvage Created 2020 | . 213 750 1057 Parts 178 | . 29 72 77 Haulers Intercepted 1 | . . . 1 Recyclers Shooed 2 | . 1 1 . Parts Field Recycled . | . . . . Retrieved Matter . | . . . . Parts Self-Destructed . | . . . . Prevented . | . . . . Kills | -11 -10 -9 -8 ------- Run | Yrd Mat Mat Mat Combat Hostiles Destroyed 47 | . 8 20 19 Melee 10 | . . 1 9 Guns 11 | . 2 2 7 Cannons 9 | . . 9 . AOE 17 | . 6 8 3 Classes Destroyed 12 | . 4 5 3 Worker 3 | . . 1 2 Builder 3 | . 1 . 2 Hauler 1 | . . . 1 Mechanic 1 | . . . 1 Operator 1 | . . 1 . Watcher 10 | . 3 5 2 Swarmer 9 | . 3 6 . Grunt 21 | . 5 5 11 Brawler 1 | . . 1 . Duelist 2 | . . 1 1 Sentry 13 | . . 7 6 Hunter 1 | . . . 1 Best Kill Streak 4 | . 4 4 4 Combat Bots Only 4 | . 3 4 3 Max Kills in Single Turn 3 | . 3 2 3 Gunslinging . | . . . . Exploded 3 | . 3 2 2 Melee 1 | . . 1 1 Uniques/NPCs Destroyed . | . . . . Combat | -11 -10 -9 -8 -------- Run | Yrd Mat Mat Mat Hostile Shots Fired 320 | . 45 99 176 Missed 93 | . 15 30 48 Damage Taken 3272 | . 330 970 1972 Core 694 | . 88 56 550 Absorbed by Shields . | . . . . Core Remaining (%) 83 | 100 64 86 . Volleys Fired 112 | . 33 37 42 Largest 3 | . 2 3 3 Hottest 165 | . 60 132 165 Shots Fired 241 | . 64 107 70 Gun 139 | . 47 29 63 Cannon 53 | . . 53 . Launcher 49 | . 17 25 7 Special . | . . . . Kinetic 123 | . 47 45 31 Thermal 69 | . . 37 32 Explosive 35 | . 17 11 7 Electromagnetic 14 | . . 14 . Robot Hit Streak 9 | . 9 5 6 Robot Miss Streak 6 | . 5 6 4 Penetration Max . | . . . . Secondary Targets 1 | . . . 1 Max Gunslinging Chain 1 | . . . 1 Shots Hit Robots 148 | . 30 51 67 Core Hits 109 | . 26 43 40 Critical Kills . | . . . . Critical Parts Destroyed . | . . . . Critical Strikes 8 | . . . 8 Burn 2 | . . . 2 Sever 6 | . . . 6 Melee Attacks 42 | . . . 42 Impact . | . . . . Slashing 42 | . . . 42 Piercing . | . . . . Sneak Attacks 3 | . . . 3 Combat Hostiles . | . . . . Follow-up Attacks 5 | . . . 5 Damage Inflicted 4625 | . 769 1446 2410 Guns 1081 | . 200 156 725 Cannons 424 | . . 424 . Explosions 1954 | . 569 842 543 Melee 1142 | . . . 1142 Ramming 24 | . . 24 . Kinetic 812 | . 200 248 364 Thermal 693 | . . 332 361 Explosive 1566 | . 569 454 543 Electromagnetic 388 | . . 388 . Impact . | . . . . Slashing 1142 | . . . 1142 Piercing . | . . . . Highest Corruption . | . . . . Average Corruption . | . . . . Corruption Purged . | . . . . Corruption Blocked . | . . . . Overload Shots . | . . . . Overflow Damage 123 | . . 19 104 Projectiles . | . . . . Explosions 19 | . . 19 . Melee 104 | . . . 104 Knockbacks 1 | . . 1 . Impact . | . . . . Kinetic 1 | . . 1 . Secondary . | . . . . Self-Inflicted Damage 105 | . 37 68 . Shots 8 | . 2 6 . Rammed 3 | . . 3 . Targets Rammed 4 | . . 4 . Kicked . | . . . . Crushed 1 | . . 1 . Highest Temperature 637 | . 29 236 637 Average Temperature 134 | . 9 68 244 Received Heat Transfer 1422 | . 111 267 1044 Effects 24 | . . . 24 Energy Bleed 6 | . . . 6 Interference 4 | . . . 4 Matter Decay 4 | . . . 4 Short Circuit 4 | . . . 4 Damage (minor) 5 | . . . 5 Damage (major) 1 | . . . 1 Siege Activations . | . . . . Robots Corrupted . | . . . . Combat Hostiles . | . . . . Parts Fried 4 | . . 4 . Impact Corruptions . | . . . . Robots Melted . | . . . . Combat Hostiles . | . . . . Parts Melted . | . . . . Heat Transferred 1443 | . . 703 740 Parts Sabotaged . | . . . . Parts Stolen . | . . . . Parts Stripped . | . . . . Power Chain Reactions 1 | . . 1 . Alert | -11 -10 -9 -8 ------- Run | Yrd Mat Mat Mat Peak Influence 455 | . 325 451 455 Initial 182 | . . 74 182 Average 216 | . 181 316 333 Maximum Alert Level 2 | . 1 2 2 Low Security (%) 39 | 100 61 5 6 Level 1 49 | . 38 76 75 Level 2 10 | . . 18 17 Level 3 . | . . . . Level 4 . | . . . . Level 5 . | . . . . High Security . | . . . . Max Security . | . . . . Squads Dispatched 4 | . . 1 3 Investigation 3 | . . 1 2 Extermination . | . . . . Reinforcement 1 | . . . 1 Assault . | . . . . Garrison . | . . . . Intercept . | . . . . Searches Triggered . | . . . . Construction Impeded . | . . . . Haulers Reinforced . | . . . . Active Scanning Responses . | . . . . Cargo Convoy Interrupts . | . . . . Stealth | -11 -10 -9 -8 --------- Run | Yrd Mat Mat Mat Distress Signals 6 | . 1 2 3 Communications Jammed . | . . . . Distress Signals . | . . . . Times Spotted 78 | . 15 28 35 Peak Tracking Total 4 | . 4 4 4 Tactical Retreats 1 | . . . 1 Traps | -11 -10 -9 -8 ------- Run | Yrd Mat Mat Mat Traps Triggered 3 | . . 1 2 Indirectly . | . . . . Trap Hack Attempts . | . . . . Triggered . | . . . . Disarmed . | . . . . Reprogrammed . | . . . . Reused . | . . . . Traps Extracted . | . . . . Installed . | . . . . Triggered . | . . . . Machines | -11 -10 -9 -8 ---------- Run | Yrd Mat Mat Mat Machines Disabled 15 | . 6 7 2 Max in Single Turn 3 | . 3 3 1 Machines Repaired . | . . . . Machines Dismantled . | . . . . Machines Sabotaged . | . . . . Overloaded Fab Kills . | . . . . Hacking | -11 -10 -9 -8 --------- Run | Yrd Mat Mat Mat Machines Accessed 7 | . 1 1 5 Terminals 7 | . 1 1 5 Fabricators . | . . . . Repair Stations . | . . . . Recycling Units . | . . . . Scanalyzers . | . . . . Garrison Access . | . . . . Total Hacks 10 | . 2 1 7 Successful 7 | . 1 1 5 Failed 3 | . 1 . 2 Catastrophic 1 | . . . 1 Database Lockouts . | . . . . Manual 1 | . . . 1 Terminals 10 | . 2 1 7 Fabricators . | . . . . Repair Stations . | . . . . Recycling Units . | . . . . Scanalyzers . | . . . . Garrison Access . | . . . . Terminal Hacks 7 | . 1 1 5 Record 6 | . 1 . 5 Alert Level 1 | . . 1 . Fabricator Hacks . | . . . . Repair Station Hacks . | . . . . Recycling Unit Hacks . | . . . . Scanalyzer . | . . . . Garrison Access Hacks . | . . . . Unauthorized Hacks . | . . . . Terminals . | . . . . Fabricators . | . . . . Repair Stations . | . . . . Recycling Units . | . . . . Scanalyzers . | . . . . Garrison Access . | . . . . Data Cores Recovered . | . . . . Used . | . . . . Hacking Detections 5 | . 1 . 4 Full Trace Events 2 | . . . 2 Feedback Events . | . . . . Feedback Blocked . | . . . . Robot Schematics Acquired . | . . . . Robots Built . | . . . . Authchips . | . . . . Time . | . . . . Total Robot Build Rating . | . . . . Part Schematics Acquired . | . . . . Parts Built . | . . . . Authchips . | . . . . Time . | . . . . Total Part Build Rating . | . . . . Parts Repaired . | . . . . Time . | . . . . Parts Recycled . | . . . . Recycled Matter . | . . . . Retrieved Matter . | . . . . Retrieved Components . | . . . . Parts Scanalyzed . | . . . . Part Schematics Acquired . | . . . . Parts Damaged . | . . . . Bothacking | -11 -10 -9 -8 ------------ Run | Yrd Mat Mat Mat Used RIF Installer . | . . . . Robots Hacked . | . . . . Non-combat . | . . . . Combat . | . . . . Robot Hacks Applied . | . . . . Relay Couplers Released . | . . . . Fabnet Peak Effective % . | . . . . Robots Rewired . | . . . . Allies Hacked . | . . . . Hacks Repelled . | . . . . Allies | -11 -10 -9 -8 -------- Run | Yrd Mat Mat Mat Total Allies . | . . . . Largest Group . | . . . . Highest-Rated Group . | . . . . Highest-Rated Ally . | . . . . Total Orders . | . . . . Ally Attacks . | . . . . Total Damage . | . . . . Kills . | . . . . Allies Corrupted . | . . . . Allies Melted . | . . . . Intel | -11 -10 -9 -8 ------- Run | Yrd Mat Mat Mat Robot Analysis Total . | . . . . Derelict Logs Recovered . | . . . . Drone Launches . | . . . . Drone Recoveries . | . . . . Exploration | -11 -10 -9 -8 ------------- Run | Yrd Mat Mat Mat Turns Passed 5168 | 1450 644 1352 1722 Spaces Moved 2516 | 555 240 498 1223 Core 60 | 16 . . 44 Treads 1281 | 539 240 498 4 Legs 565 | . . . 565 Wheels . | . . . . Hover . | . . . . Flight 610 | . . . 610 Fastest Speed 26 | 50 160 225 26 Average Speed 153 | 156 226 234 103 Slowest Speed 266 | 160 240 240 266 Overloaded Moves . | . . . . Propulsion Burnouts . | . . . . Robots Hopped 1 | . . . 1 Cave-ins Triggered . | . . . . Exploration Rate (%) 51 | 44 53 51 56 Regions Visited 3 Branch Regions . Pre-discovered Areas . | . . . . Known Exits Taken . | . . . . Unknown Exits Taken 3 | 1 1 1 . Scrap Searched . | . . . . Spaces Dug 12 | . 12 . . Terrain Destroyed 218 | . 69 108 41 Melee . | . . . . Projectile 1 | . . . 1 AOE 217 | . 69 108 40 Terrain Rammed . | . . . . Walls Destroyed . | . . . . Machines Disabled . | . . . . Actions | -11 -10 -9 -8 --------- Run | Yrd Mat Mat Mat Total 3581 | 1134 284 598 1565 Wait 719 | 569 . 1 149 Move 2511 | 554 239 497 1221 Hop 1 | . . . 1 Pick Up 70 | 5 7 27 31 Fast Attach 5 | 1 . . 4 Attach 46 | 5 1 11 29 Detach 9 | . . 3 6 Swap 28 | . 4 13 11 Drop 39 | . . 5 34 Fire 112 | . 33 37 42 Melee 37 | . . . 37 Ram . | . . . . Kick . | . . . . Crush 4 | . . 4 . Escape Stasis . | . . . . Rewire . | . . . . Trap . | . . . . Miscellaneous . | . . . . Route ------- -11/Scrapyard -10/Materials -9/Materials (discovered 2 exits: *Mat / [*Min]) -8/Materials (discovered 1 exit: [*Fac]) History --------- Turn | Location | Event 29 | -11/Scrapyard | Discovered new exit (range 16) 1451 | -11/Scrapyard | Entered Materials 1452 | -10/Materials | Build established: Mutant 2047 | -10/Materials | Discovered new exit (range 14) 2095 | -10/Materials | Entered another Materials area 2095 | -9/Materials | Evolved 2 slots: Utility x1, Weapon x1 2525 | -9/Materials | Build established: Tank 2681 | -9/Materials | Discovered new exit (range 9) 3414 | -9/Materials | Discovered new exit (range 10) 3447 | -9/Materials | Entered another Materials area 3447 | -8/Materials | Evolved 2 slots: Propulsion x2 3782 | -8/Materials | Discovered new exit (range 19) 4569 | -8/Materials | Build established: Gladiator 4839 | -8/Materials | Core integrity fell below 50% 5156 | -8/Materials | Core integrity fell below 20% 5169 | -8/Materials | Destroyed by G-47 Trooper with Particle Gun Last Messages --------------- U-05 Engineer lays Concrete. Y-45 Defender destroyed. Acquired 10 matter. Sneak attack on U-05 Engineer. Destroyed Welding Torch. Sneak attack on U-05 Engineer. Katana follow-up attack on U-05 Engineer. Destroyed Terrain Scanner. U-05 Engineer destroyed. Experienced players can activate Tactical HUD mode in the options menu, or press Ctrl-F7, for more detailed HUD info. Hardlight Generator destroyed. G-47 Trooper Particle Gun severed. Katana follow-up attack on G-47 Trooper. G-47 Trooper Aluminum Leg severed. Weight Redist. System destroyed. Aluminum Leg destroyed. Lgt. Deuterium Engine destroyed. Critical hit (Burn: +37). Map ----- +----------------------------------------------------+ | | | | | | | | | | | | | | | | | | | | | | | ?????????????????????????????????????????????????? | | ?????????????????????????????????????????????????? | | ?????????????????????????????????????????????????? | | ?????????????##########??????????????????????????? | | #########????# # !#??????????????????????????? | | #???# # #####??????????????????????? | | """ ""#????# =!%[!#??????????????????????? | | """ T"#????## # ###[#??????????????????????? | | """ ""#?????### #?#%#??????????????????????? | | #???????#######?#*#??????????????????????? | | #???########????#=#????????????????????? | | #???# #????#!#????????????????????? | | #???# """ #????# ###?# ##?????????????? | | +####+####### """ *# ??# ## #?????????????" | | [ + """ # " #@## """ #?????????????" | | ####### """ # g=[+ """ #????????????? | | #+###+####### =# #g## """ #????????????? | | ! ###+########## #?? #?????????????# | | ! #?# #??# ????# #??? #?????????????# | | !#?# #??# ??# #??? #??????##+##### | | #?# #??# """ # #####+######### ## | | = ###+#### """ + + """ ## | | ############ =# """ # ############### "T" # | | # # ??# #???########### ## | | """"" # # ????# #???# ## ## | | """"" ! # "T" #?????# #???#"" ## ]## | | """"" # """ #?????# #???#"T ####+### | | # #?????# #???#"" # | | ##+###########+####?????# #???# + T | | * #??????### #???# """ ] # | | ######## ########### #???# """ ####+### | | ####??????# #??# """ # #???# """ ## ##% | | ??????????# #??# """ # #???# ## """ ## | | #########?# #??# """ + #???## ######## """ ## | | #?# #??# # #????##???????# """ ## | | """ ###+#### # #?????????????#% ## | | """ ## # # #?????????????#! ## | | """ ## ######## ########??????# ##% | | """ ## #??????# # #??????######## | +----------------------------------------------------+ Best States ------------- Heat Dissipation 45 Energy Generation 14 Energy Capacity 410 Matter Stores 300 Matter Capacity 300 Sight Range 20 Terrain Scan Density 10 Additional Mass Support 6 Armor Coverage 225 Utility Shielding 33 Evasion (%) 64 Recoil Reduction 3 Item Schematics ----------------- None Robot Schematics ------------------ None Fabricated ------------ Nothing Alien Tech Used ----------------- None Achievements -------------- Loot Pinata One Hack Too Far Remodeling Challenges ------------ None Game ------ Seed ArmoredWeightCompressor Manual? 0 Play Time 01:32:01 Cumulative 2.1 hours Start 2024.04.01 @ 11:16:52 End 2024.04.01 @ 21:54:52 Sessions 1 Manual Loads 0 Difficulty Rogue Special Mode None Game No. 4 Rogue 4 Adventurer 0 Explorer 0 Win Type - Total 0 Types 0/0/0/0/0/0/0/0/0 Lore% 0 Gallery% 5 Achievement% 4 Wizard Run 0 Options --------- Layout 1 ASCII 0 Keyboard 0 Movement Mouse Keybinds 0 Fullscreen 1 Font 24/Smallcaps Map View 50x35 Zoom Use 0% Tactical HUD 0 Map Filters NONE Filters NONE Steam 1 RUN: 441b9b94-4c22-492d-8218-20351ed8c480